fUSD/lending_fUSD_20240819
["ID","MTS","AMOUNT","RATE_DAILY","PERIOD"]
[335319366,1724109032109,-175.69822379,9.988e-05,2]
[335319367,1724109032119,-1050.0,0.0001,2]
[335319368,1724109032128,-493.35507691,0.00010009,2]
[335319369,1724109032138,-155.0,0.00010026,2]
[335319370,1724109032149,-150.0,0.00010071,2]
[335319371,1724109032159,-155.0,0.00010097,2]
[335319372,1724109032168,-200.0,0.000101,3]
[335319373,1724109032177,-500.0,0.000102,3]
[335319374,1724109032186,-150.99,0.000102,2]
[335319375,1724109032195,-150.0,0.00010254,2]
[335319376,1724109032204,-2476.27,0.00010254,2]
[335319377,1724109032212,-150.99,0.00010254,2]
[335319378,1724109032222,-150.0,0.00010256,2]
[335319379,1724109032233,-953.53402298,0.00010256,2]
[335319380,1724109032250,-103.97597702,0.00010256,2]
[335319381,1724109032259,-150.0,0.00010256,2]
[335319382,1724109032268,-12.97697201,0.00010256,2]
[335319383,1724109032279,-137.02302799,0.00010256,2]
[335319384,1724109032289,-469.9,0.00010256,2]
[335319385,1724109032298,-150.0,0.000103,2]
[335319386,1724109032306,-150.0,0.000103,2]
[335319387,1724109032316,-349.69257201,0.000103,3]
[335319388,1724109032327,-450.30742799,0.000103,3]
[335319389,1724109032336,-1100.0,0.000104,3]
[335319390,1724109032345,-150.0,0.00010437,2]
[335319391,1724109032354,-535.65,0.00010464,2]
[335319392,1724109032363,-6096.13,0.00010471,2]
[335319393,1724109032372,-150.0,0.00010499,2]
[335319394,1724109032381,-1400.0,0.000105,3]
[335319395,1724109032390,-499.99,0.000106,2]
[335319396,1724109032399,-200.0,0.000106,3]
[335319397,1724109032409,-150.0,0.0001062,2]
[335319398,1724109032418,-200.0,0.000107,3]
[335319399,1724109032427,-200.0,0.000108,3]
[335319400,1724109032438,-150.0,0.00010803,2]
[335319401,1724109032447,-2372.32835654,0.00010875,2]
[335319402,1724109032459,-2066.72528739,0.00010875,2]
[335319403,1724109032477,-25197.6443557,0.00010875,2]
[335319404,1724109032486,-366.17430399,0.00010884,2]
[335319405,1724109032496,-179.37698944,0.00010884,2]
[335319406,1724109032505,-3106.9302,0.00010885,2]
[335319407,1724109032515,-1563.2312,0.00010885,2]
[335319408,1724109032524,-1057.9973,0.00010885,2]
[335319409,1724109032533,-6534.2505,0.00010885,2]
[335319410,1724109032542,-686.7058,0.00010886,2]
[335319411,1724109032551,-334.9541,0.00010886,2]
[335319412,1724109032560,-449.0828,0.00010886,2]
[335319414,1724109032569,-788.7556,0.00010886,2]
[335319416,1724109032579,-1048.39403632,0.00010886,2]
[335319418,1724109032591,-241.30726368,0.00010886,2]
[335319419,1724109032600,-224.62745,0.0001089,2]
[335319420,1724109032609,-174.90327436,0.00010894,2]
[335319421,1724109032619,-286.94285339,0.00010894,2]
[335319422,1724109032628,-72.71916217,0.00010896,2]
[335319423,1724109032639,-4462.12543371,0.00010896,2]
[335319424,1724109032649,-184.82332977,0.00010899,2]
[335319425,1724109032659,-200.0,0.000109,3]
[335319426,1724109032668,-366.17430398,0.000109,2]
[335319427,1724109032677,-500.0,0.00010933,2]
[335319428,1724109032686,-181.59942,0.0001094,2]
[335319429,1724109032696,-500.0,0.00010958,2]
[335319430,1724109032706,-159.94,0.00010959,2]
[335319431,1724109032715,-500.0,0.00010959,2]
[335319432,1724109032726,-360.0,0.00010962,2]
[335319433,1724109032736,-200.0,0.00010973,2]
[335319434,1724109032746,-840.85981544,0.00010974,2]
[335319435,1724109032755,-198.89692416,0.00010981,2]
[335319436,1724109032765,-840.85981544,0.00010983,2]
[335319437,1724109032775,-910.06,0.00010983,2]
[335319438,1724109032784,-2146.32,0.00010983,2]
[335319439,1724109032793,-1414.61,0.00010983,2]
[335319440,1724109032803,-658.73,0.00010983,2]
[335319441,1724109032812,-1091.33,0.00010983,2]
[335319442,1724109032821,-500.0,0.00010983,2]
[335319443,1724109032831,-2314.04,0.00010983,2]
[335319444,1724109032840,-1602.92,0.00010983,2]
[335319445,1724109032849,-500.0,0.00010983,2]
[335319446,1724109032859,-500.0,0.00010983,2]
[335319447,1724109032869,-500.0,0.00010983,2]
[335319448,1724109032878,-2225.71,0.00010983,2]
[335319449,1724109032888,-2349.03,0.00010983,2]
[335319450,1724109032898,-2349.03,0.00010983,2]
[335319451,1724109032907,-2349.03,0.00010983,2]
[335319452,1724109032917,-1636.9,0.00010983,2]
[335319453,1724109032927,-1636.9,0.00010983,2]
[335319454,1724109032937,-1636.9,0.00010983,2]
[335319455,1724109032946,-2572.7,0.00010983,2]
[335319456,1724109032956,-915.15,0.00010983,2]
[335319457,1724109032966,-915.15,0.00010983,2]
[335319458,1724109032976,-915.15,0.00010983,2]
[335319459,1724109032986,-1203.46,0.00010983,2]
[335319460,1724109032996,-500.0,0.00010983,2]
[335319461,1724109033005,-500.0,0.00010983,2]
[335319462,1724109033015,-500.0,0.00010983,2]
[335319463,1724109033025,-6124.97,0.00010983,2]
[335319464,1724109033035,-702.03,0.00010983,2]
[335319465,1724109033045,-702.03,0.00010983,2]
[335319466,1724109033055,-702.03,0.00010983,2]
[335319467,1724109033067,-1590.62,0.00010983,2]
[335319468,1724109033078,-1590.62,0.00010983,2]
[335319469,1724109033088,-1590.62,0.00010983,2]
[335319470,1724109033099,-2292.35,0.00010983,2]
[335319471,1724109033110,-17192.53438669,0.00010983,2]
[335319472,1724109033135,-499.01790074,0.00010983,2]
[335319473,1724109033147,-541.55717634,0.00010983,2]
[335319474,1724109038072,-155.0,0.00010097,2]
[335319475,1724109038238,-228.18053623,0.00010983,2]
[335319476,1724109038248,-659.6490203,0.00010983,2]
[335319477,1724109038264,-776.18302584,0.00010983,2]
[335319478,1724109038275,-1780.0858619,0.00010983,2]
[335319479,1724109038286,-2525.47940957,0.00010983,2]
[335319480,1724109038296,-403.68808382,0.00010983,2]
[335319481,1724109038307,-1659.66309036,0.00010983,2]
[335319482,1724109038318,-568.94985213,0.00010983,2]
[335319483,1724109038328,-453.30570109,0.00010983,2]
[335319484,1724109038339,-575.94544963,0.00010983,2]
[335319485,1724109038349,-622.21983407,0.00010983,2]
[335319486,1724109038360,-2919.9,0.00010983,2]
[335319487,1724109038378,-5516.22067129,0.00010983,2]
[335319488,1724109038387,-6554.53966724,0.00010983,2]
[335319489,1724109038398,-11906.75033276,0.00010983,2]
[335319490,1724109038407,-2475.89,0.00010983,2]
[335319491,1724109038416,-2475.89,0.00010983,2]
[335319493,1724109038426,-2475.89,0.00010983,2]
[335319494,1724109038435,-667.75746724,0.00010983,2]
[335319497,1724109038446,-171.00253276,0.00010983,2]
[335319498,1724109038455,-838.76,0.00010983,2]
[335319499,1724109038464,-838.76,0.00010983,2]
[335319500,1724109038473,-4314.93,0.00010983,2]
[335319501,1724109038482,-730.09,0.00010983,2]
[335319502,1724109038491,-730.09,0.00010983,2]
[335319503,1724109038500,-730.09,0.00010983,2]
[335319504,1724109038509,-13518.04,0.00010983,2]
[335319505,1724109038518,-6017.51,0.00010983,2]
[335319506,1724109038527,-2953.4676076,0.00010983,2]
[335319507,1724109038538,-1061.29187517,0.00010983,2]
[335319508,1724109038548,-570.55999995,0.00010983,2]
[335319510,1724109038559,-1432.19051728,0.00010983,2]
[335319512,1724109038568,-3617.60948268,0.00010983,2]
[335319514,1724109038579,-262.55281774,0.00010983,2]
[335319516,1724109038594,-872.70324396,0.00010983,2]
[335319519,1724109038605,-282.29427162,0.00010983,2]
[335319521,1724109038616,-754.9956438,0.00010983,2]
[335319580,1724109040141,-227.3545402,0.00010983,2]
[335319582,1724109040153,-311.70829121,0.00010983,2]
[335319584,1724109040190,-453.86170879,0.00010983,2]
[335319585,1724109040199,-765.57,0.00010983,2]
[335319586,1724109040211,-765.57,0.00010983,2]
[335319587,1724109040220,-3309.59,0.00010983,2]
[335319588,1724109040230,-3309.59,0.00010983,2]
[335319589,1724109040248,-3309.59,0.00010983,2]
[335319590,1724109040256,-500.0,0.00010983,2]
[335319591,1724109040266,-500.0,0.00010983,2]
[335319592,1724109040275,-500.0,0.00010983,2]
[335319593,1724109040283,-500.0,0.00010983,2]
[335319594,1724109040292,-500.0,0.00010983,2]
[335319595,1724109040301,-500.0,0.00010983,2]
[335319596,1724109040310,-500.0,0.00010983,2]
[335319597,1724109040319,-500.0,0.00010983,2]
[335319598,1724109040328,-500.0,0.00010983,2]
[335319599,1724109040337,-500.0,0.00010983,2]
[335319600,1724109040346,-500.0,0.00010983,2]
[335319601,1724109040355,-500.0,0.00010983,2]
[335319602,1724109040364,-4926.89,0.00010983,2]
[335319603,1724109040373,-4926.89,0.00010983,2]
[335319604,1724109040382,-4926.89,0.00010983,2]
[335319605,1724109040392,-803.8,0.00010983,2]
[335319606,1724109040401,-803.8,0.00010983,2]
[335319607,1724109040411,-803.8,0.00010983,2]
[335319608,1724109040421,-500.0,0.00010983,2]
[335319609,1724109040430,-500.0,0.00010983,2]
[335319610,1724109040439,-500.0,0.00010983,2]
[335319611,1724109040448,-271.05536579,0.00010983,2]
[335319612,1724109040457,-500.0,0.00010983,2]
[335319613,1724109040466,-500.0,0.00010983,2]
[335319614,1724109040475,-500.0,0.00010983,2]
[335319615,1724109040492,-500.0,0.00010983,2]
[335319616,1724109040502,-1372.39,0.00010983,2]
[335319617,1724109040511,-500.0,0.00010983,2]
[335319618,1724109040519,-1372.39,0.00010983,2]
[335319619,1724109040528,-500.0,0.00010983,2]
[335319620,1724109040537,-500.0,0.00010983,2]
[335319621,1724109040546,-274.65439588,0.00010983,2]
[335319622,1724109040557,-254.25,0.00010983,2]
[335319623,1724109040568,-343.24560412,0.00010983,2]
[335319624,1724109040577,-360.65759685,0.00010983,2]
[335319625,1724109040603,-139.34240315,0.00010983,2]
[335319627,1724109040612,-246.3202139,0.00010983,2]
[335319629,1724109040622,-253.6797861,0.00010983,2]
[335319631,1724109040631,-1372.39,0.00010983,2]
[335319632,1724109040640,-872.15,0.00010983,2]
[335319633,1724109040649,-500.0,0.00010983,2]
[335319634,1724109040658,-840.85981544,0.00010984,2]
[335319635,1724109040667,-500.0,0.00010984,2]
[335319636,1724109040676,-500.0,0.00010984,2]
[335319637,1724109040685,-500.0,0.00010984,2]
[335319638,1724109040694,-500.0,0.00010984,2]
[335319639,1724109040703,-500.0,0.00010984,2]
[335319640,1724109040713,-500.0,0.00010984,2]
[335319641,1724109040722,-500.0,0.00010984,2]
[335319642,1724109040733,-500.0,0.00010984,2]
[335319643,1724109040742,-305.3435462,0.00010984,2]
[335319644,1724109040754,-194.6564538,0.00010984,2]
[335319645,1724109040763,-86.5302882,0.00010984,2]
[335319646,1724109040774,-413.4697118,0.00010984,2]
[335319647,1724109040783,-242.6702882,0.00010984,2]
[335319648,1724109040794,-257.3297118,0.00010984,2]
[335319649,1724109040803,-500.0,0.00010984,2]
[335319650,1724109040812,-500.0,0.00010984,2]
[335319651,1724109040821,-500.0,0.00010984,2]
[335319652,1724109040830,-500.0,0.00010984,2]
[335319653,1724109040839,-500.0,0.00010984,2]
[335319654,1724109040848,-360.87028818,0.00010984,2]
[335319655,1724109040859,-220.39971182,0.00010984,2]
[335319656,1724109040868,-500.0,0.00010984,2]
[335319657,1724109040878,-557.72,0.00010984,2]
[335319658,1724109040887,-500.0,0.00010984,2]
[335319659,1724109040897,-500.0,0.00010984,2]
[335319660,1724109040906,-229.69,0.00010984,2]
[335319661,1724109040916,-500.0,0.00010984,2]
[335319662,1724109040925,-307.89,0.00010984,2]
[335319663,1724109040935,-500.0,0.00010984,2]
[335319664,1724109040945,-570.42,0.00010984,2]
[335319665,1724109040954,-500.0,0.00010984,2]
[335319666,1724109040963,-227.84811783,0.00010984,2]
[335319667,1724109040972,-114.51831889,0.00010984,2]
[335319668,1724109040985,-475.71168111,0.00010984,2]
[335319669,1724109040994,-500.0,0.00010984,2]
[335319670,1724109041004,-500.0,0.00010984,2]
[335319671,1724109041013,-500.0,0.00010984,2]
[335319672,1724109041022,-500.0,0.00010984,2]
[335319673,1724109041032,-500.0,0.00010984,2]
[335319674,1724109041041,-500.0,0.00010984,2]
[335319675,1724109041050,-505.08781299,0.00010984,2]
[335319676,1724109041059,-500.0,0.00010984,2]
[335319677,1724109041071,-500.0,0.00010984,2]
[335319678,1724109041080,-150.0,0.00010984,2]
[335319679,1724109041089,-500.0,0.00010984,2]
[335319680,1724109041098,-500.0,0.00010984,2]
[335319681,1724109041109,-500.0,0.00010984,2]
[335319682,1724109041120,-500.0,0.00010984,2]
[335319683,1724109041130,-500.0,0.00010984,2]
[335319684,1724109041139,-607.80559253,0.00010984,2]
[335319685,1724109041151,-500.0,0.00010984,2]
[335319686,1724109041160,-500.0,0.00010984,2]
[335319687,1724109041169,-619.36,0.00010984,2]
[335319688,1724109041178,-500.0,0.00010984,2]
[335319689,1724109041187,-500.0,0.00010984,2]
[335319690,1724109041196,-318.7,0.00010984,2]
[335319691,1724109041206,-500.0,0.00010984,2]
[335319692,1724109041215,-500.0,0.00010984,2]
[335319693,1724109041224,-500.0,0.00010984,2]
[335319694,1724109041235,-500.0,0.00010984,2]
[335319695,1724109041244,-500.0,0.00010984,2]
[335319696,1724109041253,-500.0,0.00010984,2]
[335319697,1724109041262,-500.0,0.00010984,2]
[335319698,1724109041271,-500.0,0.00010984,2]
[335319699,1724109041280,-500.0,0.00010984,2]
[335319700,1724109041289,-500.0,0.00010984,2]
[335319701,1724109041298,-500.0,0.00010984,2]
[335319702,1724109041307,-500.0,0.00010984,2]
[335319703,1724109041316,-500.0,0.00010984,2]
[335319704,1724109041325,-500.0,0.00010984,2]
[335319705,1724109041334,-500.0,0.00010984,2]
[335319706,1724109041343,-500.0,0.00010984,2]
[335319707,1724109041352,-500.0,0.00010984,2]
[335319708,1724109041361,-500.0,0.00010984,2]
[335319709,1724109041371,-500.0,0.00010984,2]
[335319710,1724109041380,-500.0,0.00010984,2]
[335319711,1724109041390,-500.0,0.00010984,2]
[335319712,1724109041399,-439.03678783,0.00010984,2]
[335319713,1724109041409,-500.0,0.00010984,2]
[335319714,1724109041418,-500.0,0.00010984,2]
[335319715,1724109041427,-500.0,0.00010984,2]
[335319716,1724109041436,-500.0,0.00010984,2]
[335319717,1724109041445,-565.05894987,0.00010984,2]
[335319718,1724109041454,-500.0,0.00010984,2]
[335319719,1724109041464,-500.0,0.00010984,2]
[335319720,1724109041473,-500.0,0.00010984,2]
[335319721,1724109041483,-500.0,0.00010984,2]
[335319722,1724109041492,-500.0,0.00010984,2]
[335319723,1724109041502,-500.0,0.00010984,2]
[335319724,1724109041511,-500.0,0.00010984,2]
[335319725,1724109041520,-500.0,0.00010984,2]
[335319726,1724109041529,-500.0,0.00010984,2]
[335319727,1724109041538,-522.37623565,0.00010984,2]
[335319728,1724109041547,-500.0,0.00010984,2]
[335319729,1724109041556,-500.0,0.00010984,2]
[335319730,1724109041567,-500.0,0.00010984,2]
[335319731,1724109041576,-732.04,0.00010984,2]
[335319732,1724109041585,-732.04,0.00010984,2]
[335319733,1724109041594,-732.04,0.00010984,2]
[335319734,1724109041604,-500.0,0.00010984,2]
[335319735,1724109041615,-500.0,0.00010984,2]
[335319736,1724109041624,-500.0,0.00010984,2]
[335319737,1724109041633,-500.0,0.00010984,2]
[335319738,1724109041642,-500.0,0.00010984,2]
[335319739,1724109041651,-515.40625582,0.00010984,2]
[335319740,1724109041661,-500.0,0.00010984,2]
[335319741,1724109041670,-500.0,0.00010984,2]
[335319742,1724109041680,-500.0,0.00010984,2]
[335319743,1724109041689,-500.0,0.00010984,2]
[335319744,1724109041699,-500.0,0.00010984,2]
[335319745,1724109041708,-500.0,0.00010984,2]
[335319746,1724109041717,-532.11551485,0.00010984,2]
[335319747,1724109041726,-500.0,0.00010984,2]
[335319748,1724109041738,-500.0,0.00010984,2]
[335319749,1724109041747,-500.0,0.00010984,2]
[335319750,1724109041756,-500.0,0.00010984,2]
[335319751,1724109041766,-555.89802308,0.00010984,2]
[335319752,1724109041776,-500.0,0.00010984,2]
[335319753,1724109041785,-500.0,0.00010984,2]
[335319754,1724109041795,-500.0,0.00010984,2]
[335319755,1724109041805,-500.0,0.00010984,2]
[335319756,1724109041814,-500.0,0.00010984,2]
[335319757,1724109041824,-500.0,0.00010984,2]
[335319758,1724109041834,-500.0,0.00010984,2]
[335319759,1724109041843,-500.0,0.00010984,2]
[335319760,1724109041854,-500.0,0.00010984,2]
[335319761,1724109041863,-500.0,0.00010984,2]
[335319762,1724109041872,-500.0,0.00010984,2]
[335319763,1724109041882,-237.48,0.00010984,2]
[335319764,1724109041892,-500.0,0.00010984,2]
[335319765,1724109041901,-506.09292845,0.00010984,2]
[335319766,1724109041911,-500.0,0.00010984,2]
[335319767,1724109041920,-500.0,0.00010984,2]
[335319768,1724109041930,-500.0,0.00010984,2]
[335319769,1724109041940,-500.0,0.00010984,2]
[335319770,1724109041949,-598.06818889,0.00010984,2]
[335319771,1724109041959,-500.0,0.00010984,2]
[335319772,1724109041968,-539.74756452,0.00010984,2]
[335319773,1724109041978,-500.0,0.00010984,2]
[335319774,1724109041987,-500.0,0.00010984,2]
[335319775,1724109041997,-500.0,0.00010984,2]
[335319776,1724109042006,-500.0,0.00010984,2]
[335319777,1724109042015,-500.0,0.00010984,2]
[335319778,1724109042025,-500.0,0.00010984,2]
[335319779,1724109042034,-500.0,0.00010984,2]
[335319780,1724109042045,-500.0,0.00010984,2]
[335319781,1724109042054,-500.0,0.00010984,2]
[335319782,1724109042063,-500.0,0.00010984,2]
[335319783,1724109042077,-500.0,0.00010984,2]
[335319784,1724109042086,-500.0,0.00010984,2]
[335319785,1724109042096,-345.49,0.00010984,2]
[335319786,1724109042105,-500.0,0.00010984,2]
[335319787,1724109042116,-500.0,0.00010984,2]
[335319788,1724109042125,-500.0,0.00010984,2]
[335319789,1724109042134,-507.08,0.00010984,2]
[335319790,1724109042144,-553.58601016,0.00010984,2]
[335319791,1724109042155,-500.0,0.00010984,2]
[335319792,1724109042165,-500.0,0.00010984,2]
[335319793,1724109042175,-500.0,0.00010984,2]
[335319794,1724109042184,-500.0,0.00010984,2]
[335319795,1724109042193,-500.0,0.00010984,2]
[335319796,1724109042202,-500.0,0.00010984,2]
[335319797,1724109042211,-500.0,0.00010984,2]
[335319798,1724109042221,-500.0,0.00010984,2]
[335319799,1724109042230,-500.0,0.00010984,2]
[335319800,1724109042239,-500.0,0.00010984,2]
[335319801,1724109042248,-500.0,0.00010984,2]
[335319802,1724109042258,-500.0,0.00010984,2]
[335319803,1724109042267,-500.0,0.00010984,2]
[335319804,1724109042275,-559.85,0.00010984,2]
[335319805,1724109042284,-500.0,0.00010984,2]
[335319806,1724109042294,-500.0,0.00010984,2]
[335319807,1724109042304,-502.99639818,0.00010984,2]
[335319808,1724109042313,-500.0,0.00010984,2]
[335319809,1724109042322,-500.0,0.00010984,2]
[335319810,1724109042331,-500.0,0.00010984,2]
[335319811,1724109042340,-153.94003966,0.00010984,2]
[335319812,1724109042349,-500.0,0.00010984,2]
[335319813,1724109042358,-500.0,0.00010984,2]
[335319814,1724109042367,-500.0,0.00010984,2]
[335319815,1724109042377,-500.0,0.00010984,2]
[335319816,1724109042386,-500.0,0.00010984,2]
[335319817,1724109042395,-500.0,0.00010984,2]
[335319818,1724109042404,-508.53806794,0.00010984,2]
[335319819,1724109042413,-500.0,0.00010984,2]
[335319820,1724109042423,-500.0,0.00010984,2]
[335319821,1724109042434,-513.81855522,0.00010984,2]
[335319822,1724109042443,-505.0624032,0.00010984,2]
[335319823,1724109042452,-500.0,0.00010984,2]
[335319824,1724109042462,-780.63,0.00010984,2]
[335319825,1724109042471,-780.63,0.00010984,2]
[335319826,1724109042480,-1732.13,0.00010984,2]
[335319827,1724109042489,-1732.13,0.00010984,2]
[335319828,1724109042499,-500.0,0.00010984,2]
[335319829,1724109042510,-500.0,0.00010984,2]
[335319830,1724109042653,-500.0,0.00010984,2]
[335319831,1724109042663,-772.35,0.00010984,2]
[335319832,1724109042672,-772.35,0.00010984,2]
[335319833,1724109042682,-2900.26,0.00010984,2]
[335319834,1724109042691,-2900.26,0.00010984,2]
[335319835,1724109042700,-2900.26,0.00010984,2]
[335319836,1724109042710,-2900.26,0.00010984,2]
[335319837,1724109042719,-500.0,0.00010984,2]
[335319838,1724109042729,-225.44,0.00010984,2]
[335319839,1724109042739,-500.0,0.00010984,2]
[335319840,1724109042748,-609.64,0.00010984,2]
[335319841,1724109042758,-638.44,0.00010984,2]
[335319842,1724109042767,-1558.0,0.00010984,2]
[335319843,1724109042777,-1558.0,0.00010984,2]
[335319844,1724109042786,-500.0,0.00010984,2]
[335319845,1724109042796,-1999.42,0.00010984,2]
[335319846,1724109042805,-264.71651877,0.00010984,2]
[335319847,1724109042815,-1999.42,0.00010984,2]
[335319848,1724109042824,-1999.42,0.00010984,2]
[335319849,1724109042835,-500.0,0.00010984,2]
[335319850,1724109042844,-500.0,0.00010984,2]
[335319851,1724109042854,-500.0,0.00010984,2]
[335319852,1724109042863,-500.0,0.00010984,2]
[335319853,1724109042872,-5274.69,0.00010984,2]
[335319854,1724109042882,-5274.69,0.00010984,2]
[335319855,1724109042892,-500.0,0.00010984,2]
[335319856,1724109042902,-500.0,0.00010984,2]
[335319857,1724109042911,-500.0,0.00010984,2]
[335319858,1724109042921,-500.0,0.00010984,2]
[335319859,1724109042930,-2146.32,0.00010984,2]
[335319860,1724109042939,-2146.32,0.00010984,2]
[335319861,1724109042949,-2146.32,0.00010984,2]
[335319862,1724109042959,-2146.32,0.00010984,2]
[335319863,1724109042968,-1573.66,0.00010984,2]
[335319864,1724109042977,-1573.66,0.00010984,2]
[335319865,1724109042987,-1046.25,0.00010984,2]
[335319866,1724109042997,-1046.25,0.00010984,2]
[335319867,1724109043006,-1046.25,0.00010984,2]
[335319868,1724109043016,-411.6894923,0.00010984,2]
[335319869,1724109043034,-505.2624392,0.00010984,2]
[335319870,1724109043045,-129.2980685,0.00010984,2]
[335319871,1724109043054,-622.76840199,0.00010984,2]
[335319872,1724109043066,-791.84159801,0.00010984,2]
[335319873,1724109043079,-808.80840199,0.00010984,2]
[335319874,1724109043091,-605.80159801,0.00010984,2]
[335319875,1724109043100,-1414.61,0.00010984,2]
[335319877,1724109043110,-1414.61,0.00010984,2]
[335319879,1724109043120,-791.17,0.00010984,2]
[335319881,1724109043129,-791.17,0.00010984,2]
[335319882,1724109043138,-500.0,0.00010984,2]
[335319883,1724109043150,-791.17,0.00010984,2]
[335319884,1724109043160,-500.0,0.00010984,2]
[335319885,1724109043169,-2351.82,0.00010984,2]
[335319886,1724109043178,-2351.82,0.00010984,2]
[335319887,1724109043187,-2351.82,0.00010984,2]
[335319888,1724109043197,-2351.82,0.00010984,2]
[335319889,1724109043206,-2021.33,0.00010984,2]
[335319890,1724109043215,-2021.33,0.00010984,2]
[335319891,1724109043225,-658.73,0.00010984,2]
[335319892,1724109043236,-658.73,0.00010984,2]
[335319893,1724109043245,-658.73,0.00010984,2]
[335319894,1724109043255,-658.73,0.00010984,2]
[335319895,1724109043264,-500.0,0.00010984,2]
[335319896,1724109043274,-500.0,0.00010984,2]
[335319897,1724109043284,-500.0,0.00010984,2]
[335319898,1724109043294,-570.92,0.00010984,2]
[335319899,1724109043303,-570.92,0.00010984,2]
[335319900,1724109043311,-500.0,0.00010984,2]
[335319901,1724109043320,-570.92,0.00010984,2]
[335319902,1724109043330,-500.0,0.00010984,2]
[335319903,1724109043340,-570.92,0.00010984,2]
[335319904,1724109043349,-976.46,0.00010984,2]
[335319905,1724109043359,-976.46,0.00010984,2]
[335319906,1724109043368,-976.46,0.00010984,2]
[335319907,1724109043377,-1091.33,0.00010984,2]
[335319908,1724109043386,-1091.33,0.00010984,2]
[335319909,1724109043395,-1091.33,0.00010984,2]
[335319910,1724109043405,-1091.33,0.00010984,2]
[335319911,1724109043415,-3103.45,0.00010984,2]
[335319912,1724109043424,-500.0,0.00010984,2]
[335319913,1724109043433,-3103.45,0.00010984,2]
[335319914,1724109043443,-500.0,0.00010984,2]
[335319915,1724109043452,-3103.45,0.00010984,2]
[335319916,1724109043462,-3103.45,0.00010984,2]
[335319918,1724109043471,-500.0,0.00010984,2]
[335319920,1724109043483,-500.0,0.00010984,2]
[335319921,1724109043492,-1067.49,0.00010984,2]
[335319922,1724109043501,-1067.49,0.00010984,2]
[335319923,1724109043510,-2314.04,0.00010984,2]
[335319924,1724109043520,-2314.04,0.00010984,2]
[335319925,1724109043529,-2314.04,0.00010984,2]
[335319926,1724109043538,-2314.04,0.00010984,2]
[335319927,1724109043548,-7765.74,0.00010984,2]
[335319928,1724109043557,-7765.74,0.00010984,2]
[335319929,1724109043566,-7765.74,0.00010984,2]
[335319930,1724109043575,-7765.74,0.00010984,2]
[335319931,1724109043585,-500.0,0.00010984,2]
[335319932,1724109043594,-500.0,0.00010984,2]
[335319933,1724109043604,-1602.92,0.00010984,2]
[335319934,1724109043613,-1602.92,0.00010984,2]
[335319935,1724109043622,-1602.92,0.00010984,2]
[335319936,1724109043631,-1602.92,0.00010984,2]
[335319938,1724109043640,-487.66,0.00010984,2]
[335319939,1724109043649,-3633.32,0.00010984,2]
[335319940,1724109043659,-3633.32,0.00010984,2]
[335319941,1724109043669,-3633.32,0.00010984,2]
[335319942,1724109043679,-3633.32,0.00010984,2]
[335319943,1724109043688,-500.0,0.00010984,2]
[335319944,1724109043697,-500.0,0.00010984,2]
[335319945,1724109043707,-500.0,0.00010984,2]
[335319946,1724109043717,-2951.02,0.00010984,2]
[335319947,1724109043726,-2951.02,0.00010984,2]